fUSD/lending_fUSD_20250506
["ID","MTS","AMOUNT","RATE_DAILY","PERIOD"]
[360142761,1746569442723,-494.13,0.00019795,2]
[360142763,1746569442733,-450.0,0.00019795,2]
[360142764,1746569442742,-450.0,0.00019795,2]
[360142765,1746569442757,-741.24,0.00019795,2]
[360142766,1746569442766,-2487.98,0.00019795,2]
[360142767,1746569442775,-450.0,0.00019795,2]
[360142768,1746569442785,-721.45,0.00019795,2]
[360142769,1746569442794,-721.45,0.00019795,2]
[360142770,1746569442804,-648.02,0.00019795,2]
[360142771,1746569442813,-450.0,0.00019795,2]
[360142772,1746569442823,-450.0,0.00019795,2]
[360142773,1746569442832,-450.0,0.00019795,2]
[360142774,1746569442841,-1767.16,0.00019795,2]
[360142775,1746569442850,-1793.63,0.00019795,2]
[360142776,1746569442860,-1793.63,0.00019795,2]
[360142777,1746569442874,-450.0,0.00019795,2]
[360142778,1746569442883,-9110.19,0.00019795,2]
[360142779,1746569442892,-887.05,0.00019795,2]
[360142780,1746569442902,-1143.06,0.00019795,2]
[360142781,1746569442911,-450.0,0.00019795,2]
[360142782,1746569442921,-328.36184722,0.00019795,2]
[360142783,1746569442981,-121.63815278,0.00019795,2]
[360142784,1746569442990,-450.0,0.00019795,2]
[360142785,1746569443000,-889.75003803,0.00019795,2]
[360142786,1746569443011,-307.18785067,0.00019795,2]
[360142787,1746569443022,-225.8021113,0.00019795,2]
[360142788,1746569443031,-291.43562643,0.00019795,2]
[360142789,1746569443043,-492.94437357,0.00019795,2]
[360142790,1746569443052,-3526.98,0.00019795,2]
[360142791,1746569443061,-626.2,0.00019795,2]
[360142792,1746569443070,-1364.11,0.00019795,2]
[360142793,1746569443079,-258.23,0.00019795,2]
[360142794,1746569443088,-505.05,0.00019795,2]
[360142795,1746569443097,-8821.87,0.00019795,2]
[360142796,1746569443107,-450.0,0.00019795,2]
[360142797,1746569443121,-406.33288837,0.00019795,2]
[360142798,1746569443131,-643.05,0.00019795,2]
[360142799,1746569443140,-470.0,0.00019795,2]
[360142800,1746569443149,-450.0,0.00019795,2]
[360142801,1746569443158,-450.0,0.00019795,2]
[360142802,1746569443167,-450.0,0.00019795,2]
[360142803,1746569443177,-702.53,0.00019795,2]
[360142804,1746569443187,-550.0,0.00019795,2]
[360142805,1746569443196,-450.0,0.00019795,2]
[360142806,1746569443206,-450.0,0.00019795,2]
[360142807,1746569443215,-450.0,0.00019795,2]
[360142808,1746569443225,-450.0,0.00019795,2]
[360142809,1746569443235,-470.0,0.00019795,2]
[360142810,1746569443244,-450.0,0.00019795,2]
[360142811,1746569443254,-1825.60002526,0.00019795,2]
[360142812,1746569443266,-235.39997474,0.00019795,2]
[360142813,1746569443276,-470.0,0.00019795,2]
[360142815,1746569443285,-1880.2,0.00019795,2]
[360142817,1746569443295,-835.52,0.00019795,2]
[360142819,1746569443304,-450.0,0.00019795,2]
[360142821,1746569443314,-1752.9,0.00019795,2]
[360142823,1746569443323,-450.0,0.00019795,2]
[360142825,1746569443332,-120.95772499,0.00019795,2]
[360142828,1746569443351,-329.04227501,0.00019795,2]
[360142830,1746569443361,-450.0,0.00019795,2]
[360142832,1746569443372,-2631.27,0.00019795,2]
[360142834,1746569443381,-60.22419636,0.00019795,2]
[360142860,1746569443699,-389.77580364,0.00019795,2]
[360142861,1746569443708,-450.0,0.00019795,2]
[360142862,1746569443717,-450.0,0.00019795,2]
[360142863,1746569443726,-450.0,0.00019795,2]
[360142864,1746569443735,-724.56,0.00019795,2]
[360142865,1746569443745,-724.56,0.00019795,2]
[360142866,1746569443758,-1267.8,0.00019795,2]
[360142867,1746569443767,-450.0,0.00019795,2]
[360142868,1746569443777,-450.0,0.00019795,2]
[360142869,1746569443786,-450.0,0.00019795,2]
[360142870,1746569443795,-450.0,0.00019795,2]
[360142871,1746569443805,-450.0,0.00019795,2]
[360142872,1746569443814,-1084.31,0.00019795,2]
[360142873,1746569443823,-1912.29419636,0.00019795,2]
[360142874,1746569443836,-435.10580364,0.00019795,2]
[360142875,1746569443845,-183.93507762,0.00019795,2]
[360142876,1746569443856,-900.37492238,0.00019795,2]
[360142877,1746569443865,-450.0,0.00019795,2]
[360142878,1746569443874,-276.67779627,0.00019795,2]
[360142894,1746569445583,-173.32220373,0.00019795,2]
[360142896,1746569445592,-278.42356628,0.00019795,2]
[360142904,1746569445766,-458.97526161,0.00019795,2]
[360142905,1746569445777,-43.76117211,0.00019795,2]
[360142906,1746569445787,-450.0,0.00019795,2]
[360142907,1746569445797,-450.0,0.00019795,2]
[360142908,1746569445806,-450.0,0.00019795,2]
[360142909,1746569445815,-450.0,0.00019795,2]
[360142910,1746569445824,-490.0,0.00019795,2]
[360142911,1746569445834,-478.98,0.00019795,2]
[360142912,1746569445844,-450.0,0.00019795,2]
[360142913,1746569445853,-167.62782789,0.00019795,2]
[360142914,1746569445865,-282.37217211,0.00019795,2]
[360142915,1746569445876,-532.02,0.00019795,2]
[360142916,1746569445885,-291.45782789,0.00019795,2]
[360142917,1746569445901,-318.09217211,0.00019795,2]
[360142918,1746569445910,-1971.52,0.00019795,2]
[360142919,1746569445919,-1971.52,0.00019795,2]
[360142920,1746569445928,-450.0,0.00019795,2]
[360142921,1746569445937,-3069.87,0.00019795,2]
[360142922,1746569445946,-450.0,0.00019795,2]
[360142923,1746569445956,-1320.58,0.00019795,2]
[360142925,1746569445965,-1320.58,0.00019795,2]
[360142927,1746569445975,-450.0,0.00019795,2]
[360142928,1746569445984,-450.0,0.00019795,2]
[360142930,1746569445993,-450.0,0.00019795,2]
[360142933,1746569446003,-796.13,0.00019795,2]
[360142934,1746569446012,-295.76949226,0.00019795,2]
[360142935,1746569446021,-450.0,0.00019795,2]
[360142936,1746569446030,-450.0,0.00019795,2]
[360142937,1746569446039,-470.0,0.00019795,2]
[360142938,1746569446048,-513.49,0.00019795,2]
[360142939,1746569446057,-450.0,0.00019795,2]
[360142940,1746569446066,-546.4,0.00019795,2]
[360142941,1746569446075,-450.0,0.00019795,2]
[360142942,1746569446084,-500.0,0.00019795,2]
[360142943,1746569446094,-500.0,0.00019795,2]
[360142944,1746569446103,-546.4,0.00019795,2]
[360142945,1746569446112,-4005.188619,0.00019795,2]
[360142946,1746569446127,-450.0,0.00019795,2]
[360142947,1746569446136,-450.0,0.00019795,2]
[360142948,1746569446145,-3404.89,0.00019795,2]
[360142949,1746569446154,-1460.46,0.00019795,2]
[360142950,1746569446163,-1460.46,0.00019795,2]
[360142952,1746569446173,-450.0,0.00019795,2]
[360142954,1746569446182,-1111.19,0.00019795,2]
[360142955,1746569446191,-2079.73,0.00019795,2]
[360142956,1746569446200,-450.0,0.00019795,2]
[360142957,1746569446209,-502.18435207,0.00019795,2]
[360142958,1746569446218,-450.0,0.00019795,2]
[360142959,1746569446228,-536.0370058,0.00019795,2]
[360142960,1746569446238,-788.26,0.00019795,2]
[360142961,1746569446248,-510.0,0.00019796,2]
[360142962,1746569446257,-450.0,0.00019796,2]
[360142963,1746569446266,-497.39,0.00019796,2]
[360142964,1746569446276,-490.0,0.00019796,2]
[360142965,1746569446285,-450.0,0.00019796,2]
[360142966,1746569446294,-450.0,0.00019796,2]
[360142967,1746569446303,-450.0,0.00019796,2]
[360142968,1746569446312,-450.0,0.00019796,2]
[360142969,1746569446321,-450.0,0.00019796,2]
[360142970,1746569446330,-490.0,0.00019796,2]
[360142971,1746569446340,-450.0,0.00019796,2]
[360142972,1746569446349,-450.0,0.00019796,2]
[360142973,1746569446359,-450.0,0.00019796,2]
[360142974,1746569446370,-490.0,0.00019796,2]
[360142975,1746569446379,-490.0,0.00019796,2]
[360142976,1746569446388,-490.0,0.00019796,2]
[360142977,1746569446397,-450.0,0.00019796,2]
[360142978,1746569446406,-450.0,0.00019796,2]
[360142979,1746569446416,-450.0,0.00019796,2]
[360142980,1746569446425,-490.0,0.00019796,2]
[360142981,1746569446557,-450.0,0.00019796,2]
[360142982,1746569446567,-586.74569545,0.00019796,2]
[360142983,1746569446576,-450.0,0.00019796,2]
[360142984,1746569446585,-490.0,0.00019796,2]
[360142985,1746569446595,-452.61659452,0.00019796,2]
[360142986,1746569446604,-490.0,0.00019796,2]
[360142987,1746569446613,-490.0,0.00019796,2]
[360142988,1746569446627,-156.96400007,0.00019796,2]
[360142989,1746569446636,-450.0,0.00019796,2]
[360142990,1746569446645,-450.0,0.00019796,2]
[360142991,1746569446654,-450.0,0.00019796,2]
[360142992,1746569446663,-450.0,0.00019796,2]
[360142993,1746569446673,-450.0,0.00019796,2]
[360142994,1746569446682,-400.0,0.00019796,2]
[360142995,1746569446691,-162.19048397,0.00019796,2]
[360142996,1746569446700,-500.0,0.00019796,2]
[360142997,1746569446710,-450.0,0.00019796,2]
[360142998,1746569446719,-450.0,0.00019796,2]
[360142999,1746569446729,-470.0,0.00019796,2]
[360143000,1746569446738,-450.0,0.00019796,2]
[360143001,1746569446748,-254.51858953,0.00019796,2]
[360143002,1746569446760,-500.0,0.00019796,2]
[360143003,1746569446769,-470.0,0.00019796,2]
[360143004,1746569446778,-470.0,0.00019796,2]
[360143005,1746569446787,-450.0,0.00019796,2]
[360143006,1746569446796,-290.94729881,0.00019796,2]
[360143007,1746569446806,-470.0,0.00019796,2]
[360143008,1746569446815,-470.0,0.00019796,2]
[360143009,1746569446824,-470.0,0.00019796,2]
[360143010,1746569446834,-450.0,0.00019796,2]
[360143011,1746569446843,-470.0,0.00019796,2]
[360143012,1746569446852,-2300.56,0.00019796,2]
[360143013,1746569446861,-470.0,0.00019796,2]
[360143014,1746569446878,-470.0,0.00019796,2]
[360143015,1746569446887,-470.0,0.00019796,2]
[360143016,1746569446897,-450.0,0.00019796,2]
[360143017,1746569446906,-470.0,0.00019796,2]
[360143018,1746569446916,-470.0,0.00019796,2]
[360143019,1746569446925,-450.0,0.00019796,2]
[360143020,1746569446935,-450.0,0.00019796,2]
[360143021,1746569446944,-367.12070165,0.00019796,2]
[360143022,1746569446953,-450.0,0.00019796,2]
[360143023,1746569446962,-450.0,0.00019796,2]
[360143024,1746569446971,-517.84,0.00019796,2]
[360143025,1746569446981,-470.0,0.00019796,2]
[360143026,1746569446990,-470.0,0.00019796,2]
[360143027,1746569446999,-450.0,0.00019796,2]
[360143028,1746569447008,-470.0,0.00019796,2]
[360143029,1746569447018,-470.0,0.00019796,2]
[360143030,1746569447027,-450.0,0.00019796,2]
[360143031,1746569447036,-470.0,0.00019796,2]
[360143032,1746569447046,-2295.14,0.00019796,2]
[360143033,1746569447055,-450.0,0.00019796,2]
[360143034,1746569447064,-450.0,0.00019796,2]
[360143035,1746569447073,-450.0,0.00019796,2]
[360143036,1746569447083,-470.0,0.00019796,2]
[360143037,1746569447092,-470.0,0.00019796,2]
[360143038,1746569447101,-470.0,0.00019796,2]
[360143039,1746569447111,-516.80054553,0.00019796,2]
[360143040,1746569447123,-470.0,0.00019796,2]
[360143041,1746569447133,-470.0,0.00019796,2]
[360143042,1746569447143,-470.0,0.00019796,2]
[360143043,1746569447152,-470.0,0.00019796,2]
[360143044,1746569447161,-470.0,0.00019796,2]
[360143045,1746569447170,-450.0,0.00019796,2]
[360143046,1746569447180,-874.03,0.00019796,2]
[360143047,1746569447189,-874.03,0.00019796,2]
[360143048,1746569447199,-470.0,0.00019796,2]
[360143049,1746569447208,-470.0,0.00019796,2]
[360143050,1746569447217,-470.0,0.00019796,2]
[360143051,1746569447227,-470.0,0.00019796,2]
[360143052,1746569447236,-633.92,0.00019796,2]
[360143053,1746569447246,-400.0,0.00019796,2]
[360143054,1746569447255,-470.0,0.00019796,2]
[360143055,1746569447265,-470.0,0.00019796,2]
[360143056,1746569447274,-450.0,0.00019796,2]
[360143057,1746569447284,-470.0,0.00019796,2]
[360143058,1746569447294,-470.0,0.00019796,2]
[360143059,1746569447303,-1433.43,0.00019796,2]
[360143060,1746569447313,-450.0,0.00019796,2]
[360143061,1746569447323,-470.0,0.00019796,2]
[360143062,1746569447333,-470.0,0.00019796,2]
[360143063,1746569447343,-450.0,0.00019796,2]
[360143064,1746569447352,-470.0,0.00019796,2]
[360143065,1746569447361,-365.05165633,0.00019796,2]
[360143066,1746569447374,-450.0,0.00019796,2]
[360143067,1746569447384,-162.55411999,0.00019796,2]
[360143068,1746569447394,-470.0,0.00019796,2]
[360143069,1746569447403,-245.65,0.00019796,2]
[360143070,1746569447413,-450.0,0.00019796,2]
[360143071,1746569447423,-470.0,0.00019796,2]
[360143072,1746569447432,-598.24,0.00019796,2]
[360143073,1746569447441,-470.0,0.00019796,2]
[360143074,1746569447452,-450.0,0.00019796,2]
[360143075,1746569447462,-450.0,0.00019796,2]
[360143076,1746569447472,-470.0,0.00019796,2]
[360143077,1746569447482,-470.0,0.00019796,2]
[360143078,1746569447491,-592.09078105,0.00019796,2]
[360143079,1746569447500,-470.0,0.00019796,2]
[360143080,1746569447511,-450.0,0.00019796,2]
[360143081,1746569447521,-470.0,0.00019796,2]
[360143082,1746569447530,-450.0,0.00019796,2]
[360143083,1746569447539,-450.0,0.00019796,2]
[360143084,1746569447549,-534.3,0.00019796,2]
[360143085,1746569447558,-450.0,0.00019796,2]
[360143086,1746569447568,-470.0,0.00019796,2]
[360143087,1746569447577,-450.0,0.00019796,2]
[360143088,1746569447586,-470.0,0.00019796,2]
[360143089,1746569447596,-450.0,0.00019796,2]
[360143090,1746569447605,-450.0,0.00019796,2]
[360143091,1746569447615,-470.0,0.00019796,2]
[360143092,1746569447626,-470.0,0.00019796,2]
[360143093,1746569447636,-470.0,0.00019796,2]
[360143094,1746569447645,-470.0,0.00019796,2]
[360143095,1746569447654,-470.0,0.00019796,2]
[360143096,1746569447663,-450.0,0.00019796,2]
[360143097,1746569447673,-470.0,0.00019796,2]
[360143098,1746569447682,-470.0,0.00019796,2]
[360143099,1746569447691,-470.0,0.00019796,2]
[360143100,1746569447700,-450.0,0.00019796,2]
[360143101,1746569447709,-533.74,0.00019796,2]
[360143102,1746569447719,-533.74,0.00019796,2]
[360143103,1746569447728,-450.0,0.00019796,2]
[360143104,1746569447737,-450.0,0.00019796,2]
[360143105,1746569447748,-450.0,0.00019796,2]
[360143106,1746569447761,-470.0,0.00019796,2]
[360143107,1746569447770,-450.0,0.00019796,2]
[360143108,1746569447779,-450.0,0.00019796,2]
[360143109,1746569447790,-470.0,0.00019796,2]
[360143110,1746569447799,-470.0,0.00019796,2]
[360143111,1746569447808,-419.80341459,0.00019796,2]
[360143112,1746569447817,-450.0,0.00019796,2]
[360143113,1746569447826,-450.0,0.00019796,2]
[360143114,1746569447836,-470.0,0.00019796,2]
[360143115,1746569447846,-470.0,0.00019796,2]
[360143116,1746569447856,-470.0,0.00019796,2]
[360143117,1746569447865,-470.0,0.00019796,2]
[360143118,1746569447876,-450.0,0.00019796,2]
[360143119,1746569447885,-450.0,0.00019796,2]
[360143120,1746569447895,-450.0,0.00019796,2]
[360143121,1746569447904,-450.0,0.00019796,2]
[360143122,1746569447913,-450.0,0.00019796,2]
[360143123,1746569447923,-470.0,0.00019796,2]
[360143124,1746569447932,-470.0,0.00019796,2]
[360143125,1746569447942,-225.599768,0.00019796,2]
[360143126,1746569447951,-450.0,0.00019796,2]
[360143127,1746569447960,-450.0,0.00019796,2]
[360143128,1746569447969,-450.0,0.00019796,2]
[360143129,1746569447979,-470.0,0.00019796,2]
[360143130,1746569447989,-450.0,0.00019796,2]
[360143131,1746569447998,-470.0,0.00019796,2]
[360143132,1746569448007,-450.0,0.00019796,2]
[360143133,1746569448016,-450.0,0.00019796,2]
[360143134,1746569448026,-536.1394843,0.00019796,2]
[360143135,1746569448035,-450.0,0.00019796,2]
[360143136,1746569448044,-470.0,0.00019796,2]
[360143137,1746569448054,-470.0,0.00019796,2]
[360143138,1746569448063,-450.0,0.00019796,2]
[360143139,1746569448072,-450.0,0.00019796,2]
[360143140,1746569448082,-450.0,0.00019796,2]
[360143141,1746569448091,-470.0,0.00019796,2]
[360143142,1746569448100,-450.0,0.00019796,2]
[360143143,1746569448110,-795.97,0.00019796,2]
[360143144,1746569448122,-450.0,0.00019796,2]
[360143145,1746569448132,-2000.0,0.00019796,2]
[360143146,1746569448141,-450.0,0.00019796,2]
[360143147,1746569448151,-450.0,0.00019796,2]
[360143148,1746569448162,-454.82,0.00019796,2]
[360143149,1746569448172,-450.0,0.00019796,2]
[360143150,1746569448181,-450.0,0.00019796,2]
[360143151,1746569448191,-450.0,0.00019796,2]
[360143152,1746569448201,-470.0,0.00019796,2]
[360143153,1746569448211,-450.0,0.00019796,2]
[360143154,1746569448220,-450.0,0.00019796,2]
[360143155,1746569448230,-600.47,0.00019796,2]
[360143156,1746569448240,-470.0,0.00019796,2]
[360143157,1746569448251,-450.0,0.00019796,2]
[360143158,1746569448261,-560.93903677,0.00019796,2]
[360143159,1746569448271,-450.0,0.00019796,2]
[360143160,1746569448280,-450.0,0.00019796,2]
[360143161,1746569448290,-450.0,0.00019796,2]
[360143162,1746569448300,-450.0,0.00019796,2]
[360143163,1746569448310,-450.0,0.00019796,2]
[360143164,1746569448320,-264.27,0.00019796,2]
[360143165,1746569448330,-450.0,0.00019796,2]
[360143166,1746569448340,-450.0,0.00019796,2]
[360143167,1746569448349,-1100.43,0.00019796,2]
[360143168,1746569448359,-768.88,0.00019796,2]
[360143169,1746569448369,-768.88,0.00019796,2]
[360143170,1746569448379,-450.0,0.00019796,2]
[360143171,1746569448388,-450.0,0.00019796,2]
[360143172,1746569448398,-450.0,0.00019796,2]
[360143173,1746569448407,-1164.19,0.00019796,2]
[360143174,1746569448417,-450.0,0.00019796,2]
[360143175,1746569448427,-450.0,0.00019796,2]
[360143176,1746569448437,-1089.48,0.00019796,2]
[360143177,1746569448447,-1376.98,0.00019796,2]
[360143178,1746569448457,-450.0,0.00019796,2]
[360143179,1746569448466,-450.0,0.00019796,2]
[360143180,1746569448475,-450.0,0.00019796,2]
[360143181,1746569448484,-450.0,0.00019796,2]
[360143182,1746569448494,-450.0,0.00019796,2]
[360143183,1746569448503,-668.6,0.00019796,2]
[360143184,1746569448513,-668.6,0.00019796,2]
[360143185,1746569448523,-450.0,0.00019796,2]
[360143186,1746569448532,-450.0,0.00019796,2]
[360143187,1746569448542,-450.0,0.00019796,2]
[360143188,1746569448551,-498.12,0.00019796,2]
[360143189,1746569448560,-490.0,0.00019796,2]
[360143190,1746569448569,-995.73,0.00019796,2]
[360143191,1746569448579,-450.0,0.00019796,2]
[360143192,1746569448589,-450.0,0.00019796,2]
[360143193,1746569448599,-450.0,0.00019796,2]
[360143194,1746569448608,-470.0,0.00019796,2]
[360143195,1746569448621,-979.24,0.00019796,2]
[360143196,1746569448630,-608.19,0.00019796,2]
[360143197,1746569448640,-608.19,0.00019796,2]
[360143198,1746569448649,-1284.89,0.00019796,2]
[360143199,1746569448658,-450.0,0.00019796,2]
[360143200,1746569448667,-500.0,0.00019796,2]
[360143201,1746569448676,-470.0,0.00019796,2]
[360143202,1746569448801,-450.0,0.00019796,2]
[360143203,1746569448811,-2372.37,0.00019796,2]
[360143204,1746569448821,-450.0,0.00019796,2]
[360143205,1746569448830,-450.0,0.00019796,2]
[360143206,1746569448839,-477.21,0.00019796,2]
[360143207,1746569448849,-450.0,0.00019796,2]
[360143208,1746569448858,-450.0,0.00019796,2]
[360143209,1746569448869,-450.0,0.00019796,2]
[360143210,1746569448878,-1326.6,0.00019796,2]
[360143211,1746569448887,-2701.08,0.00019796,2]
[360143212,1746569448896,-450.0,0.00019796,2]
[360143213,1746569448906,-767.93,0.00019796,2]
[360143214,1746569448915,-475.41718845,0.00019796,2]
[360143215,1746569448924,-2839.57,0.00019796,2]
[360143216,1746569448934,-450.0,0.00019796,2]
[360143217,1746569448944,-550.53,0.00019796,2]
[360143218,1746569448962,-542.16,0.00019796,2]
[360143219,1746569448972,-151.0,0.00019796,2]
[360143220,1746569448981,-151.0,0.00019796,2]
[360143221,1746569448991,-2113.94,0.00019796,2]
[360143222,1746569449001,-1494.3,0.00019796,2]
[360143223,1746569449010,-172.27,0.00019796,2]
[360143224,1746569449020,-450.0,0.00019796,2]
[360143225,1746569449029,-470.0,0.00019796,2]
[360143226,1746569449039,-1475.89,0.00019796,2]
[360143227,1746569449048,-1368.37,0.00019796,2]
[360143228,1746569449057,-450.0,0.00019796,2]
[360143229,1746569449066,-1907.85,0.00019796,2]
[360143230,1746569449076,-450.0,0.00019796,2]
[360143231,1746569449085,-536.38,0.00019796,2]
[360143232,1746569449094,-536.38,0.00019796,2]
[360143233,1746569449104,-490.0,0.00019796,2]
[360143234,1746569449113,-187.63090589,0.00019796,2]
[360143235,1746569449126,-470.0,0.00019796,2]
[360143236,1746569449136,-263.13997707,0.00019796,2]
[360143237,1746569449145,-246.08387167,0.00019796,2]
[360143238,1746569449155,-323.91668134,0.00019796,2]
[360143239,1746569449164,-167.9267975,0.00019796,2]
[360143240,1746569449174,-274.10293658,0.00019796,2]
[360143241,1746569449183,-500.0,0.00019796,2]
[360143242,1746569449193,-500.0,0.00019796,2]
[360143243,1746569449203,-500.0,0.00019796,2]
[360143244,1746569449212,-500.0,0.00019796,2]
[360143245,1746569449222,-987.77,0.00019796,2]
[360143246,1746569449231,-500.0,0.00019796,2]
[360143247,1746569449241,-500.0,0.00019796,2]
[360143248,1746569449251,-500.0,0.00019796,2]
[360143249,1746569449261,-987.77,0.00019796,2]
[360143250,1746569449270,-577.90020928,0.00019796,2]
[360143251,1746569449280,-500.0,0.00019796,2]
[360143252,1746569449289,-2487.98,0.00019796,2]
[360143253,1746569449298,-450.0,0.00019796,2]
[360143254,1746569449308,-450.0,0.00019796,2]
[360143255,1746569449317,-450.0,0.00019796,2]
[360143256,1746569449327,-470.0,0.00019796,2]
[360143257,1746569449336,-450.0,0.00019796,2]
[360143258,1746569449346,-1358.99,0.00019796,2]
[360143259,1746569449355,-1358.99,0.00019796,2]
[360143260,1746569449365,-1143.06,0.00019796,2]
[360143261,1746569449376,-450.0,0.00019796,2]
[360143262,1746569449386,-1422.74,0.00019796,2]
[360143263,1746569449396,-784.38,0.00019796,2]
[360143264,1746569449406,-1459.14,0.00019796,2]
[360143265,1746569449416,-1459.14,0.00019796,2]
[360143266,1746569449425,-1364.11,0.00019796,2]
[360143267,1746569449434,-505.05,0.00019796,2]
[360143268,1746569449444,-643.05,0.00019796,2]
[360143269,1746569449454,-1593.27,0.00019796,2]
[360143270,1746569449463,-1593.27,0.00019796,2]
[360143271,1746569449472,-450.0,0.00019796,2]
[360143272,1746569449482,-450.0,0.00019796,2]
[360143273,1746569449491,-450.0,0.00019796,2]
[360143274,1746569449501,-450.0,0.00019796,2]
[360143275,1746569449510,-151.0,0.00019796,2]
[360143276,1746569449519,-450.0,0.00019796,2]
[360143277,1746569449529,-450.0,0.00019796,2]
[360143278,1746569449538,-450.0,0.00019796,2]
[360143279,1746569449548,-450.0,0.00019796,2]
[360143280,1746569449557,-513.96,0.00019796,2]
[360143281,1746569449566,-513.96,0.00019796,2]
[360143282,1746569449576,-450.0,0.00019796,2]
[360143283,1746569449585,-329.44778762,0.00019796,2]
[360143284,1746569449594,-450.0,0.00019796,2]
[360143285,1746569449603,-450.0,0.00019796,2]
[360143286,1746569449613,-450.0,0.00019796,2]
[360143287,1746569449624,-1338.48,0.00019796,2]
[360143288,1746569449633,-1338.48,0.00019796,2]
[360143289,1746569449643,-450.0,0.00019796,2]
[360143290,1746569449652,-450.0,0.00019796,2]
[360143291,1746569449661,-450.0,0.00019796,2]
[360143292,1746569449671,-450.0,0.00019796,2]
[360143293,1746569449680,-470.0,0.00019796,2]
[360143294,1746569449689,-532.02,0.00019796,2]
[360143295,1746569449699,-490.0,0.00019796,2]
[360143296,1746569449708,-3069.87,0.00019796,2]
[360143297,1746569449718,-450.0,0.00019796,2]
[360143298,1746569449727,-450.0,0.00019796,2]
[360143299,1746569449737,-151.0,0.00019796,2]
[360143300,1746569449746,-450.0,0.00019796,2]
[360143301,1746569449760,-450.0,0.00019796,2]
[360143302,1746569449769,-442.61371797,0.00019796,2]
[360143303,1746569449778,-500.0,0.00019796,2]
[360143304,1746569449787,-1111.19,0.00019796,2]
[360143305,1746569449797,-23808.1062,0.00019797,2]
[360143306,1746569449806,-151.0,0.00019797,2]
[360143307,1746569449815,-151.0,0.00019797,2]
[360143308,1746569449824,-151.0,0.00019797,2]
[360143309,1746569449834,-151.0,0.00019797,2]
[360143310,1746569449844,-151.0,0.00019797,2]
[360143311,1746569449853,-151.0,0.00019797,2]
[360143312,1746569449862,-151.0,0.00019797,2]
[360143313,1746569449874,-151.0,0.00019797,2]
[360143314,1746569449883,-151.0,0.00019797,2]
[360143315,1746569449892,-151.0,0.00019797,2]
[360143316,1746569449902,-151.0,0.00019797,2]
[360143317,1746569449912,-151.0,0.00019797,2]
[360143318,1746569449921,-157.005154,0.00019797,2]
[360143319,1746569449931,-450.0,0.00019797,2]
[360143320,1746569449940,-497.39,0.00019797,2]
[360143321,1746569449949,-431.26233819,0.00019797,2]
[360143322,1746569449959,-450.0,0.00019797,2]
[360143323,1746569449978,-450.0,0.00019797,2]
[360143324,1746569449988,-450.0,0.00019797,2]
[360143325,1746569449996,-580.89342385,0.00019797,2]
[360143326,1746569450006,-226.53,0.00019797,2]
[360143327,1746569450015,-450.0,0.00019797,2]